[Event "Late-Titled-Tuesday-Blitz-June-18-2024"]
[Site "Chess.com"]
[Date "2024.06.18"]
[Round "9"]
[White "Mikayel99"]
[Black "Zurability"]
[Result "0-1"]
[WhiteElo "2672"]
[BlackElo "2817"]
[TimeControl "180+1"]
[EndTime "15:46:12 PDT"]
[Termination "Zurability won by resignation"]

1. Nf3 {[%clk 0:03:00.9]} 1... d5 {[%clk 0:02:56.6]} 2. d4 {[%clk 0:02:58.5]}
2... Nf6 {[%clk 0:02:56.8]} 3. g3 {[%clk 0:02:58]} 3... c6 {[%clk 0:02:56.6]} 4.
Bg2 {[%clk 0:02:57.9]} 4... Bf5 {[%clk 0:02:56.6]} 5. O-O {[%clk 0:02:58.3]}
5... h6 {[%clk 0:02:57.2]} 6. c4 {[%clk 0:02:58.2]} 6... e6 {[%clk 0:02:57.7]}
7. b3 {[%clk 0:02:57]} 7... Nbd7 {[%clk 0:02:58.2]} 8. Nc3 {[%clk 0:02:56.7]}
8... Bd6 {[%clk 0:02:58.5]} 9. Nd2 {[%clk 0:02:54.7]} 9... O-O {[%clk
0:02:43.4]} 10. e4 {[%clk 0:02:53.1]} 10... dxe4 {[%clk 0:02:43.9]} 11. Ndxe4
{[%clk 0:02:53]} 11... Nxe4 {[%clk 0:02:44.3]} 12. Nxe4 {[%clk 0:02:53.4]} 12...
Be7 {[%clk 0:02:43.1]} 13. Bb2 {[%clk 0:02:47.6]} 13... Nf6 {[%clk 0:02:40.9]}
14. Qe2 {[%clk 0:02:40.5]} 14... Nxe4 {[%clk 0:02:23.7]} 15. Bxe4 {[%clk
0:02:41.4]} 15... Bxe4 {[%clk 0:02:24.3]} 16. Qxe4 {[%clk 0:02:42.3]} 16... Bf6
{[%clk 0:02:24.7]} 17. Rfd1 {[%clk 0:02:38.6]} 17... Qa5 {[%clk 0:02:23.8]} 18.
Qc2 {[%clk 0:02:03.2]} 18... Rfd8 {[%clk 0:02:20.7]} 19. Rd3 {[%clk 0:02:00.6]}
19... Rd7 {[%clk 0:02:17.7]} 20. Rad1 {[%clk 0:01:59.2]} 20... Rad8 {[%clk
0:02:18.2]} 21. Bc3 {[%clk 0:01:53.2]} 21... Qf5 {[%clk 0:02:17.6]} 22. Qe2
{[%clk 0:01:36.2]} 22... c5 {[%clk 0:01:35.4]} 23. g4 {[%clk 0:00:59.3]} 23...
Qg6 {[%clk 0:01:18.8]} 24. d5 {[%clk 0:00:46.7]} 24... Bxc3 {[%clk 0:01:18.3]}
25. Rxc3 {[%clk 0:00:47.2]} 25... exd5 {[%clk 0:01:18.7]} 26. cxd5 {[%clk
0:00:43.1]} 26... Rxd5 {[%clk 0:01:14.1]} 27. Rxd5 {[%clk 0:00:42.5]} 27... Rxd5
{[%clk 0:01:14.7]} 28. h3 {[%clk 0:00:40.3]} 28... b6 {[%clk 0:01:00]} 29. Kg2
{[%clk 0:00:33.3]} 29... Rd4 {[%clk 0:00:53.1]} 30. Qe8+ {[%clk 0:00:27.4]}
30... Kh7 {[%clk 0:00:52.9]} 31. Rf3 {[%clk 0:00:28.3]} 31... f6 {[%clk
0:00:37.8]} 32. Qe2 {[%clk 0:00:28.1]} 32... Qe4 {[%clk 0:00:34]} 33. Qa6 {[%clk
0:00:16.8]} 33... Qd5 {[%clk 0:00:33.2]} 34. Kg3 {[%clk 0:00:12.2]} 34... Qe5+
{[%clk 0:00:31.5]} 35. Kg2 {[%clk 0:00:12.4]} 35... h5 {[%clk 0:00:31.5]} 36.
gxh5 {[%clk 0:00:11.2]} 36... Qg5+ {[%clk 0:00:31]} 37. Rg3 {[%clk 0:00:11.2]}
37... Qd5+ {[%clk 0:00:31.7]} 38. Rf3 {[%clk 0:00:08.5]} 38... Kh6 {[%clk
0:00:18.4]} 39. Qc8 {[%clk 0:00:07.3]} 39... Qg5+ {[%clk 0:00:05.2]} 40. Rg3
{[%clk 0:00:07.5]} 40... Qd5+ {[%clk 0:00:05.4]} 41. Kh2 {[%clk 0:00:07.8]}
41... Kh7 {[%clk 0:00:02.8]} 42. Qc7 {[%clk 0:00:06.8]} 42... Qd7 {[%clk
0:00:02.7]} 43. Qb8 {[%clk 0:00:06.1]} 43... Rd1 {[%clk 0:00:02.6]} 44. h6
{[%clk 0:00:06.7]} 44... g5 {[%clk 0:00:02.4]} 45. Qf8 {[%clk 0:00:06.2]} 45...
Qb7 {[%clk 0:00:02.3]} 46. f3 {[%clk 0:00:06.1]} 46... Qd7 {[%clk 0:00:02]} 47.
Rg2 {[%clk 0:00:05.4]} 47... Qd6+ {[%clk 0:00:02]} 48. Rg3 {[%clk 0:00:05.4]}
48... Qxf8 {[%clk 0:00:02]} 0-1

[Event "Late-Titled-Tuesday-Blitz-June-18-2024"]
[Site "Chess.com"]
[Date "2024.06.18"]
[Round "9"]
[White "King_Deded4d5"]
[Black "Adar_07"]
[Result "0-1"]
[WhiteElo "2510"]
[BlackElo "2805"]
[TimeControl "180+1"]
[EndTime "15:46:14 PDT"]
[Termination "Adar_07 won on time"]

1. d4 {[%clk 0:03:00.9]} 1... Nf6 {[%clk 0:02:57.3]} 2. Nf3 {[%clk 0:03:01.2]}
2... e6 {[%clk 0:02:57.3]} 3. Bf4 {[%clk 0:03:00.6]} 3... c5 {[%clk 0:02:50.6]}
4. e3 {[%clk 0:03:00.7]} 4... Nc6 {[%clk 0:02:41.1]} 5. Nbd2 {[%clk 0:03:00.7]}
5... d5 {[%clk 0:02:36]} 6. c3 {[%clk 0:03:00.4]} 6... Be7 {[%clk 0:02:35.2]} 7.
h4 {[%clk 0:03:00]} 7... O-O {[%clk 0:02:34.8]} 8. Bd3 {[%clk 0:02:58.8]} 8...
b6 {[%clk 0:02:33.7]} 9. h5 {[%clk 0:02:56.9]} 9... h6 {[%clk 0:02:33.4]} 10.
Ne5 {[%clk 0:02:56.3]} 10... Nxe5 {[%clk 0:02:33.3]} 11. dxe5 {[%clk 0:02:56.3]}
11... Nd7 {[%clk 0:02:31.8]} 12. Qg4 {[%clk 0:02:51.5]} 12... Kh8 {[%clk
0:02:31.2]} 13. Rh3 {[%clk 0:02:34.9]} 13... f5 {[%clk 0:02:05.1]} 14. Qg6
{[%clk 0:02:32.6]} 14... c4 {[%clk 0:01:38.9]} 15. Bc2 {[%clk 0:01:48.6]} 15...
Bg5 {[%clk 0:01:15.5]} 16. Rg3 {[%clk 0:01:43.4]} 16... Qe8 {[%clk 0:01:03]} 17.
Bxg5 {[%clk 0:01:29.2]} 17... Qxg6 {[%clk 0:01:02.5]} 18. hxg6 {[%clk
0:01:29.8]} 18... hxg5 {[%clk 0:01:02.8]} 19. Rxg5 {[%clk 0:01:09.1]} 19... Nxe5
{[%clk 0:01:01.3]} 20. Ke2 {[%clk 0:01:08]} 20... Rf6 {[%clk 0:01:01.1]} 21.
Rh1+ {[%clk 0:01:06]} 21... Kg8 {[%clk 0:01:00.3]} 22. f4 {[%clk 0:01:01.2]}
22... Nxg6 {[%clk 0:00:59.5]} 23. Nf3 {[%clk 0:01:00.5]} 23... Bd7 {[%clk
0:00:48]} 24. Rgh5 {[%clk 0:00:55.4]} 24... Be8 {[%clk 0:00:44.8]} 25. g4 {[%clk
0:00:48.5]} 25... fxg4 {[%clk 0:00:34.2]} 26. Ng5 {[%clk 0:00:45.8]} 26... Nxf4+
{[%clk 0:00:15.7]} 27. exf4 {[%clk 0:00:46.7]} 27... Bxh5 {[%clk 0:00:16.5]} 28.
Rxh5 {[%clk 0:00:47.6]} 28... Rh6 {[%clk 0:00:17.1]} 29. Bh7+ {[%clk 0:00:48.5]}
29... Kf8 {[%clk 0:00:15]} 30. Rxh6 {[%clk 0:00:47.6]} 30... gxh6 {[%clk
0:00:15.9]} 31. Nxe6+ {[%clk 0:00:48.1]} 31... Kf7 {[%clk 0:00:16.5]} 32. f5
{[%clk 0:00:42.8]} 32... Kf6 {[%clk 0:00:14.6]} 33. Kf2 {[%clk 0:00:38.2]} 33...
h5 {[%clk 0:00:11]} 34. Kg3 {[%clk 0:00:38.1]} 34... Re8 {[%clk 0:00:10.1]} 35.
Kf4 {[%clk 0:00:08]} 35... Re7 {[%clk 0:00:07]} 36. Bg8 {[%clk 0:00:08.5]} 36...
g3 {[%clk 0:00:01.7]} 37. Kxg3 {[%clk 0:00:07.3]} 37... Kxf5 {[%clk 0:00:02.6]}
38. Nd4+ {[%clk 0:00:06.8]} 38... Ke4 {[%clk 0:00:03.1]} 39. Kh4 {[%clk
0:00:03.4]} 39... Re5 {[%clk 0:00:02]} 40. Bh7+ {[%clk 0:00:03.2]} 40... Ke3
{[%clk 0:00:02]} 0-1

[Event "Late-Titled-Tuesday-Blitz-June-18-2024"]
[Site "Chess.com"]
[Date "2024.06.18"]
[Round "9"]
[White "Lupul_Cenusiu"]
[Black "Mikhal867"]
[Result "1-0"]
[WhiteElo "2667"]
[BlackElo "2448"]
[TimeControl "180+1"]
[EndTime "15:46:14 PDT"]
[Termination "Lupul_Cenusiu won by checkmate"]

1. e4 {[%clk 0:03:00.9]} 1... g6 {[%clk 0:02:58.9]} 2. d4 {[%clk 0:03:00.6]}
2... Bg7 {[%clk 0:02:58.6]} 3. Nc3 {[%clk 0:03:01.2]} 3... d6 {[%clk 0:02:57.3]}
4. Bc4 {[%clk 0:03:01.6]} 4... e6 {[%clk 0:02:55.6]} 5. f4 {[%clk 0:02:55.9]}
5... Ne7 {[%clk 0:02:51.4]} 6. Nf3 {[%clk 0:02:56.4]} 6... b6 {[%clk 0:02:50.4]}
7. Be3 {[%clk 0:02:46.5]} 7... Bb7 {[%clk 0:02:49.3]} 8. Bf2 {[%clk 0:02:46.6]}
8... a6 {[%clk 0:02:45.6]} 9. a4 {[%clk 0:02:46]} 9... O-O {[%clk 0:02:41.3]}
10. O-O {[%clk 0:02:45.2]} 10... d5 {[%clk 0:02:38.3]} 11. Bd3 {[%clk
0:02:39.4]} 11... Nbc6 {[%clk 0:02:30.9]} 12. e5 {[%clk 0:02:27.3]} 12... Nb4
{[%clk 0:02:29.8]} 13. Be2 {[%clk 0:02:25]} 13... Rc8 {[%clk 0:02:20.9]} 14. Nb1
{[%clk 0:02:20.2]} 14... a5 {[%clk 0:02:06.8]} 15. c3 {[%clk 0:02:16.6]} 15...
Na6 {[%clk 0:02:06.3]} 16. Na3 {[%clk 0:02:12.2]} 16... c5 {[%clk 0:01:49.9]}
17. Nb5 {[%clk 0:02:12]} 17... c4 {[%clk 0:01:40.4]} 18. Bh4 {[%clk 0:01:50.8]}
18... Qd7 {[%clk 0:01:39.1]} 19. Bf6 {[%clk 0:01:44.1]} 19... Nc7 {[%clk
0:01:32.2]} 20. Nd6 {[%clk 0:01:30.7]} 20... Rb8 {[%clk 0:01:32.1]} 21. Bxg7
{[%clk 0:01:30.4]} 21... Kxg7 {[%clk 0:01:30.8]} 22. Qe1 {[%clk 0:01:23.2]}
22... Nf5 {[%clk 0:01:28.8]} 23. Nxb7 {[%clk 0:01:10.2]} 23... Rxb7 {[%clk
0:01:27.8]} 24. Bd1 {[%clk 0:01:10.6]} 24... h5 {[%clk 0:01:25.7]} 25. h3 {[%clk
0:01:10.6]} 25... Rh8 {[%clk 0:01:11.6]} 26. g4 {[%clk 0:01:10.7]} 26... hxg4
{[%clk 0:01:10.7]} 27. hxg4 {[%clk 0:01:11.6]} 27... Nh6 {[%clk 0:01:09.7]} 28.
Qg3 {[%clk 0:00:46.8]} 28... Rbb8 {[%clk 0:01:09]} 29. Bc2 {[%clk 0:00:43.9]}
29... Rbg8 {[%clk 0:01:07.8]} 30. Kf2 {[%clk 0:00:40.8]} 30... Kf8 {[%clk
0:00:58.1]} 31. Ke2 {[%clk 0:00:40.6]} 31... Rg7 {[%clk 0:00:49.1]} 32. Rh1
{[%clk 0:00:38.4]} 32... Rgh7 {[%clk 0:00:49.3]} 33. Ng5 {[%clk 0:00:38.3]}
33... Rg7 {[%clk 0:00:38.5]} 34. Rh2 {[%clk 0:00:38.6]} 34... Rgg8 {[%clk
0:00:28]} 35. Rah1 {[%clk 0:00:38.2]} 35... b5 {[%clk 0:00:28.3]} 36. Rxh6
{[%clk 0:00:37.1]} 36... Rxh6 {[%clk 0:00:27.8]} 37. Rxh6 {[%clk 0:00:38]} 37...
bxa4 {[%clk 0:00:28.1]} 38. Nh7+ {[%clk 0:00:36.9]} 38... Ke7 {[%clk 0:00:26.6]}
39. Qh4+ {[%clk 0:00:35.5]} 39... g5 {[%clk 0:00:23.1]} 40. Nxg5 {[%clk
0:00:35.2]} 40... Qb5 {[%clk 0:00:20.7]} 41. Nxe6+ {[%clk 0:00:16.1]} 41... Kd7
{[%clk 0:00:20.7]} 42. Nxc7 {[%clk 0:00:11.9]} 42... Kxc7 {[%clk 0:00:20.8]} 43.
Qe7+ {[%clk 0:00:11.7]} 43... Kb8 {[%clk 0:00:18.8]} 44. Qxf7 {[%clk 0:00:09.1]}
44... Rc8 {[%clk 0:00:15.6]} 45. Rh7 {[%clk 0:00:04.7]} 45... Qb6 {[%clk
0:00:15.8]} 46. Qf6 {[%clk 0:00:04]} 46... Qxb2 {[%clk 0:00:14.7]} 47. Qd6+
{[%clk 0:00:04.4]} 47... Ka8 {[%clk 0:00:07.8]} 48. Qa6+ {[%clk 0:00:04.6]}
48... Kb8 {[%clk 0:00:08.3]} 49. Qa7# {[%clk 0:00:05.2]} 1-0

[Event "Late-Titled-Tuesday-Blitz-June-18-2024"]
[Site "Chess.com"]
[Date "2024.06.18"]
[Round "9"]
[White "Colombiano07"]
[Black "Matalon"]
[Result "1/2-1/2"]
[WhiteElo "2345"]
[BlackElo "2489"]
[TimeControl "180+1"]
[EndTime "15:46:14 PDT"]
[Termination "Game drawn by repetition"]

1. d4 {[%clk 0:03:00.9]} 1... Nf6 {[%clk 0:02:59.2]} 2. Nf3 {[%clk 0:03:00.5]}
2... g6 {[%clk 0:02:59.3]} 3. Nc3 {[%clk 0:03:00.2]} 3... d5 {[%clk 0:02:57.7]}
4. Bf4 {[%clk 0:03:00.7]} 4... Bg7 {[%clk 0:02:57]} 5. Nb5 {[%clk 0:03:00.9]}
5... Na6 {[%clk 0:02:56.3]} 6. e3 {[%clk 0:03:01.3]} 6... O-O {[%clk 0:02:56.1]}
7. h3 {[%clk 0:03:01.8]} 7... Ne4 {[%clk 0:02:55.5]} 8. Bd3 {[%clk 0:03:01.4]}
8... c6 {[%clk 0:02:55.1]} 9. Na3 {[%clk 0:02:58.9]} 9... Nc7 {[%clk 0:02:50.3]}
10. O-O {[%clk 0:02:59.4]} 10... c5 {[%clk 0:02:36.2]} 11. c3 {[%clk 0:02:57.2]}
11... Bf5 {[%clk 0:02:25.4]} 12. Nb5 {[%clk 0:02:51.3]} 12... Nxb5 {[%clk
0:02:19.3]} 13. Bxb5 {[%clk 0:02:52.2]} 13... c4 {[%clk 0:02:17.9]} 14. Ba4
{[%clk 0:02:50.4]} 14... a6 {[%clk 0:02:12.5]} 15. Bc2 {[%clk 0:02:49.9]} 15...
b5 {[%clk 0:02:12.4]} 16. a3 {[%clk 0:02:49.9]} 16... a5 {[%clk 0:02:12]} 17.
Ne5 {[%clk 0:02:48.3]} 17... f6 {[%clk 0:02:02.3]} 18. Nf3 {[%clk 0:02:33]}
18... Qb6 {[%clk 0:02:00.9]} 19. Nd2 {[%clk 0:02:29.9]} 19... Nxd2 {[%clk
0:01:56.2]} 20. Qxd2 {[%clk 0:02:19.3]} 20... Bxc2 {[%clk 0:01:55.8]} 21. Qxc2
{[%clk 0:02:20.1]} 21... b4 {[%clk 0:01:48.3]} 22. axb4 {[%clk 0:02:18.5]} 22...
axb4 {[%clk 0:01:48.4]} 23. e4 {[%clk 0:02:16.5]} 23... e6 {[%clk 0:01:42.2]}
24. exd5 {[%clk 0:02:16]} 24... exd5 {[%clk 0:01:42]} 25. Rfe1 {[%clk
0:02:09.8]} 25... Rxa1 {[%clk 0:01:37.2]} 26. Rxa1 {[%clk 0:02:08.8]} 26... Re8
{[%clk 0:01:37.8]} 27. Qd2 {[%clk 0:02:06.3]} 27... f5 {[%clk 0:01:35.5]} 28.
Bh6 {[%clk 0:02:05.7]} 28... Bh8 {[%clk 0:01:22.1]} 29. Ra4 {[%clk 0:01:48.8]}
29... bxc3 {[%clk 0:01:11.3]} 30. bxc3 {[%clk 0:01:49.7]} 30... Qb1+ {[%clk
0:01:10.7]} 31. Kh2 {[%clk 0:01:47.7]} 31... Qe4 {[%clk 0:00:58.4]} 32. Ra7
{[%clk 0:01:41.9]} 32... Bf6 {[%clk 0:00:43.3]} 33. Qb2 {[%clk 0:01:19.6]} 33...
Be7 {[%clk 0:00:23.4]} 34. Qb6 {[%clk 0:01:07.4]} 34... f4 {[%clk 0:00:16]} 35.
Qc6 {[%clk 0:00:52.6]} 35... Bh4 {[%clk 0:00:12.1]} 36. Qd7 {[%clk 0:00:25.7]}
36... Re7 {[%clk 0:00:06.6]} 37. Qd8+ {[%clk 0:00:20.7]} 37... Kf7 {[%clk
0:00:06.7]} 38. Qf8+ {[%clk 0:00:19]} 38... Ke6 {[%clk 0:00:06.6]} 39. Qg8+
{[%clk 0:00:13.1]} 39... Kd6 {[%clk 0:00:04.2]} 40. Bf8 {[%clk 0:00:09.5]} 40...
Bg3+ {[%clk 0:00:03.7]} 41. fxg3 {[%clk 0:00:10.4]} 41... fxg3+ {[%clk
0:00:03.2]} 42. Kxg3 {[%clk 0:00:10.1]} 42... Qe3+ {[%clk 0:00:03.9]} 43. Kh2
{[%clk 0:00:06.8]} 43... Qf4+ {[%clk 0:00:03.2]} 44. Kg1 {[%clk 0:00:05.8]}
44... Qe3+ {[%clk 0:00:03.7]} 45. Kh2 {[%clk 0:00:05.4]} 45... Qf4+ {[%clk
0:00:03.8]} 46. Kg1 {[%clk 0:00:05.6]} 46... Qe3+ {[%clk 0:00:03.8]} 47. Kh2
{[%clk 0:00:05.4]} 1/2-1/2

[Event "Late-Titled-Tuesday-Blitz-June-18-2024"]
[Site "Chess.com"]
[Date "2024.06.18"]
[Round "9"]
[White "MaestroCheck"]
[Black "urano56"]
[Result "1-0"]
[WhiteElo "2625"]
[BlackElo "2413"]
[TimeControl "180+1"]
[EndTime "15:46:22 PDT"]
[Termination "MaestroCheck won by resignation"]

1. e4 {[%clk 0:03:00.9]} 1... e6 {[%clk 0:03:00.4]} 2. d4 {[%clk 0:03:00]} 2...
d5 {[%clk 0:03:01]} 3. Nd2 {[%clk 0:03:00]} 3... c5 {[%clk 0:03:00.3]} 4. Ngf3
{[%clk 0:02:58.9]} 4... Nc6 {[%clk 0:02:50.8]} 5. exd5 {[%clk 0:02:50]} 5...
exd5 {[%clk 0:02:50.3]} 6. Bb5 {[%clk 0:02:49.9]} 6... Nf6 {[%clk 0:02:47.6]} 7.
O-O {[%clk 0:02:48.2]} 7... cxd4 {[%clk 0:02:37.3]} 8. Re1+ {[%clk 0:02:41.8]}
8... Be7 {[%clk 0:02:36.7]} 9. Nb3 {[%clk 0:02:41.9]} 9... O-O {[%clk
0:02:35.8]} 10. h3 {[%clk 0:02:30.5]} 10... a6 {[%clk 0:02:28.9]} 11. Bf1 {[%clk
0:02:28.4]} 11... Ne4 {[%clk 0:02:21.5]} 12. Nfxd4 {[%clk 0:02:18.7]} 12... Nxd4
{[%clk 0:02:14.5]} 13. Nxd4 {[%clk 0:02:15.4]} 13... Bc5 {[%clk 0:02:13.3]} 14.
Be3 {[%clk 0:02:14.1]} 14... Qf6 {[%clk 0:02:06.4]} 15. c3 {[%clk 0:02:04.4]}
15... Be6 {[%clk 0:01:58]} 16. Nf3 {[%clk 0:01:37.5]} 16... Rac8 {[%clk
0:01:49.1]} 17. Bxc5 {[%clk 0:01:35.8]} 17... Rxc5 {[%clk 0:01:47.8]} 18. Qd4
{[%clk 0:01:36.3]} 18... Rfc8 {[%clk 0:01:29.5]} 19. Qxf6 {[%clk 0:01:33.4]}
19... Nxf6 {[%clk 0:01:30.4]} 20. Rad1 {[%clk 0:01:32.1]} 20... b5 {[%clk
0:01:23.7]} 21. Nd4 {[%clk 0:01:26.9]} 21... Bd7 {[%clk 0:01:23.3]} 22. Re5
{[%clk 0:01:25.5]} 22... a5 {[%clk 0:01:19.5]} 23. Nb3 {[%clk 0:01:24]} 23...
R5c7 {[%clk 0:01:16.2]} 24. g4 {[%clk 0:01:12.6]} 24... h6 {[%clk 0:01:15.5]}
25. a3 {[%clk 0:00:54.8]} 25... b4 {[%clk 0:01:14.3]} 26. cxb4 {[%clk
0:00:48.2]} 26... axb4 {[%clk 0:01:15.2]} 27. axb4 {[%clk 0:00:47]} 27... Ba4
{[%clk 0:01:07.7]} 28. Rd3 {[%clk 0:00:38.5]} 28... Rc2 {[%clk 0:00:44.9]} 29.
Nc5 {[%clk 0:00:28]} 29... Bb5 {[%clk 0:00:44.4]} 30. Rc3 {[%clk 0:00:28.2]}
30... Rxc3 {[%clk 0:00:22.5]} 31. bxc3 {[%clk 0:00:28]} 31... Bxf1 {[%clk
0:00:22.5]} 32. Kxf1 {[%clk 0:00:28.9]} 32... Ra8 {[%clk 0:00:22.5]} 33. f3
{[%clk 0:00:25.3]} 33... Ra2 {[%clk 0:00:22.4]} 34. Re2 {[%clk 0:00:25.5]} 34...
Ra1+ {[%clk 0:00:22.8]} 35. Kf2 {[%clk 0:00:25.8]} 35... Rc1 {[%clk 0:00:22.9]}
36. Re3 {[%clk 0:00:23.4]} 36... g6 {[%clk 0:00:23.1]} 37. Kg3 {[%clk
0:00:23.6]} 37... Kg7 {[%clk 0:00:22.9]} 38. Kf4 {[%clk 0:00:24]} 38... Rd1
{[%clk 0:00:20.3]} 39. Ke5 {[%clk 0:00:23.8]} 39... Rh1 {[%clk 0:00:20.1]} 40.
f4 {[%clk 0:00:23.4]} 40... g5 {[%clk 0:00:16.3]} 41. fxg5 {[%clk 0:00:21.3]}
41... hxg5 {[%clk 0:00:16.4]} 42. Rf3 {[%clk 0:00:20.1]} 42... Re1+ {[%clk
0:00:14.9]} 43. Kd6 {[%clk 0:00:20.2]} 43... Kg6 {[%clk 0:00:13.9]} 44. Nd3
{[%clk 0:00:19.2]} 44... Re6+ {[%clk 0:00:13.8]} 45. Kc5 {[%clk 0:00:18.9]}
45... Re4 {[%clk 0:00:13.2]} 46. Rf5 {[%clk 0:00:17.3]} 46... Rc4+ {[%clk
0:00:13.1]} 47. Kd6 {[%clk 0:00:17.1]} 47... Rxc3 {[%clk 0:00:14]} 48. Ne5+
{[%clk 0:00:17.7]} 48... Kg7 {[%clk 0:00:13.4]} 49. Rxg5+ {[%clk 0:00:18.2]}
49... Kf8 {[%clk 0:00:13.4]} 50. Rf5 {[%clk 0:00:18.8]} 50... Ne8+ {[%clk
0:00:12.8]} 51. Kxd5 {[%clk 0:00:18.8]} 51... f6 {[%clk 0:00:13.2]} 52. Ng6+
{[%clk 0:00:17.1]} 52... Kg7 {[%clk 0:00:13.1]} 53. Nf4 {[%clk 0:00:17.4]} 53...
Rb3 {[%clk 0:00:13.1]} 54. Kc4 {[%clk 0:00:17.2]} 54... Rf3 {[%clk 0:00:11.6]}
55. Nh5+ {[%clk 0:00:17.1]} 55... Kg6 {[%clk 0:00:11.8]} 56. Rxf3 {[%clk
0:00:17.1]} 56... Nd6+ {[%clk 0:00:12.7]} 57. Kd5 {[%clk 0:00:16.9]} 1-0

[Event "Late-Titled-Tuesday-Blitz-June-18-2024"]
[Site "Chess.com"]
[Date "2024.06.18"]
[Round "9"]
[White "Tunahan_Makaraci"]
[Black "stollenmonster"]
[Result "1-0"]
[WhiteElo "2640"]
[BlackElo "2873"]
[TimeControl "180+1"]
[EndTime "15:46:23 PDT"]
[Termination "Tunahan_Makaraci won by resignation"]

1. e4 {[%clk 0:03:00.9]} 1... c5 {[%clk 0:02:59.9]} 2. Nf3 {[%clk 0:03:00.5]}
2... Nf6 {[%clk 0:03:00.4]} 3. e5 {[%clk 0:02:59.4]} 3... Nd5 {[%clk 0:03:00.8]}
4. c3 {[%clk 0:02:59.4]} 4... Nc6 {[%clk 0:03:00.6]} 5. Bc4 {[%clk 0:02:59.2]}
5... Nb6 {[%clk 0:03:00.5]} 6. Bb3 {[%clk 0:02:59.7]} 6... g6 {[%clk 0:03:01]}
7. d4 {[%clk 0:02:57.1]} 7... cxd4 {[%clk 0:03:01.9]} 8. cxd4 {[%clk 0:02:57.3]}
8... Bg7 {[%clk 0:03:02.4]} 9. O-O {[%clk 0:02:56.8]} 9... O-O {[%clk
0:03:02.7]} 10. Bf4 {[%clk 0:02:55.2]} 10... d6 {[%clk 0:03:03.1]} 11. Nc3
{[%clk 0:02:54.8]} 11... Bg4 {[%clk 0:03:03.5]} 12. exd6 {[%clk 0:02:43.2]}
12... Nxd4 {[%clk 0:03:02.8]} 13. dxe7 {[%clk 0:02:31.9]} 13... Qxe7 {[%clk
0:03:03.3]} 14. Re1 {[%clk 0:01:51.5]} 14... Qb4 {[%clk 0:03:03]} 15. Re4 {[%clk
0:01:39.3]} 15... Rad8 {[%clk 0:03:00.4]} 16. Be3 {[%clk 0:01:22]} 16... Nxf3+
{[%clk 0:01:36.4]} 17. Qxf3 {[%clk 0:01:20.5]} 17... Bxf3 {[%clk 0:01:16.7]} 18.
Rxb4 {[%clk 0:01:20.3]} 18... Bc6 {[%clk 0:01:17.2]} 19. h3 {[%clk 0:01:09.8]}
19... Rd7 {[%clk 0:01:05.1]} 20. Re1 {[%clk 0:01:08.3]} 20... Rfd8 {[%clk
0:00:59.4]} 21. Bg5 {[%clk 0:01:06.8]} 21... Rc8 {[%clk 0:00:57.4]} 22. Nb5
{[%clk 0:00:57.5]} 22... Nd5 {[%clk 0:00:53.2]} 23. Bxd5 {[%clk 0:00:49.1]}
23... Bxd5 {[%clk 0:00:50]} 24. Nxa7 {[%clk 0:00:49.1]} 24... Ra8 {[%clk
0:00:49.2]} 25. Nb5 {[%clk 0:00:46]} 25... h6 {[%clk 0:00:46.3]} 26. Bf4 {[%clk
0:00:37]} 26... Rxa2 {[%clk 0:00:44.3]} 27. Nc3 {[%clk 0:00:36.8]} 27... Ra7
{[%clk 0:00:28.6]} 28. Nxd5 {[%clk 0:00:36.1]} 28... Rxd5 {[%clk 0:00:29.5]} 29.
Re8+ {[%clk 0:00:34.7]} 29... Kh7 {[%clk 0:00:29.5]} 30. Re7 {[%clk 0:00:34.9]}
30... Bf8 {[%clk 0:00:26.5]} 31. Rxf7+ {[%clk 0:00:31.9]} 31... Kg8 {[%clk
0:00:26.7]} 32. Rbxb7 {[%clk 0:00:29.8]} 32... Ra1+ {[%clk 0:00:18.7]} 33. Kh2
{[%clk 0:00:29.8]} 33... g5 {[%clk 0:00:19.3]} 34. Be3 {[%clk 0:00:25.8]} 34...
Rdd1 {[%clk 0:00:14.2]} 35. Rfd7 {[%clk 0:00:19.8]} 35... Bd6+ {[%clk
0:00:09.5]} 36. g3 {[%clk 0:00:17.2]} 36... Be5 {[%clk 0:00:09.8]} 37. Rxd1
{[%clk 0:00:14.6]} 37... Rxd1 {[%clk 0:00:10.7]} 38. b4 {[%clk 0:00:14.3]} 38...
Rb1 {[%clk 0:00:09.2]} 39. b5 {[%clk 0:00:14.7]} 39... Rb4 {[%clk 0:00:05.2]}
40. b6 {[%clk 0:00:14.6]} 40... Rb5 {[%clk 0:00:05]} 41. Re7 {[%clk 0:00:13.5]}
41... Bd6 {[%clk 0:00:02.4]} 42. Rd7 {[%clk 0:00:13.4]} 42... Be5 {[%clk
0:00:02.6]} 43. b7 {[%clk 0:00:13.5]} 43... Kf8 {[%clk 0:00:03.1]} 44. Kg2
{[%clk 0:00:10.7]} 44... Ke8 {[%clk 0:00:03.4]} 45. Rh7 {[%clk 0:00:11]} 45...
Kd8 {[%clk 0:00:02.3]} 46. Kf3 {[%clk 0:00:11.2]} 46... Rb4 {[%clk 0:00:01.7]}
47. Ba7 {[%clk 0:00:08.2]} 47... Bc7 {[%clk 0:00:02.6]} 48. Rxc7 {[%clk
0:00:06.3]} 48... g4+ {[%clk 0:00:02.9]} 49. hxg4 {[%clk 0:00:05.6]} 49... Kxc7
{[%clk 0:00:03.6]} 50. b8=Q+ {[%clk 0:00:05.7]} 1-0